[Event "XXXII Belgrade Trophy 2018"]
[Site "Belgrade"]
[Date "2018.12.01"]
[Round "8"]
[White "Petrov, Marian"]
[Black "Graovac, Vidak Balsa"]
[Result "1/2-1/2"]
[ECO "C02"]
[WhiteElo "2488"]
[BlackElo "2155"]
[Annotator "RC"]
[PlyCount "51"]
[EventDate "2018.11.24"]
[EventType "swiss"]
[EventCountry "SRB"]
[SourceTitle "playchess.com"]
[Source "ChessBase"]
[SourceQuality "1"]
[TimeControl "40/5400+30:900+30"]

1. e4 {[%emt 0:00:00]} e6 {[%emt 0:00:00]} 2. d4 {[%emt 0:00:54]} d5 {[%emt 0:00:00]} 3. e5 {[%emt 0:00:05]} c5 {[%emt 0:00:00]} 4. c3 {[%emt 0:00:06]} Qb6 {[%emt 0:00:00]} 5. Nf3 {[%emt 0:00:06]} Bd7 {[%emt 0:00:12]} 6. Be2 {[%emt 0:00:08]} cxd4 {[%emt 0:00:05]} 7. cxd4 {[%emt 0:00:06]} Bb5 {[%emt 0:00:07]} 8. Nc3 {[%emt 0:00:31]} Bxe2 {[%emt 0:01:00]} 9. Nxe2 {[%emt 0:00:07]} Ne7 {[%emt 0:05:40]} 10. O-O {[%emt 0:00:25]} Nec6 {[%emt 0:03:19]} 11. Ng3 {[%emt 0:00:11]} h6 {[%emt 0:03:34]} 12. Be3 {[%emt 0:01:53]} Nd7 {[%emt 0:01:13]} 13. Rb1 {[%emt 0:00:52]} Qa6 {[%emt 0:02:43]} 14. a3 {[%emt 0:02:30]} Na5 {[%emt 0:03:56]} 15. Nd2 {[%emt 0:01:08]} Be7 {[%emt 0:09:15]} 16. b4 {[%emt 0:12:35]} Nc4 {[%emt 0:00:32]} 17. Nxc4 {[%emt 0:00:13]} Qxc4 {[%emt 0:03:40]} 18. f4 {[%emt 0:03:25]} g6 {[%emt 0:01:45]} 19. Qf3 {[%emt 0:01:45]} Qa6 {[%emt 0:03:30]} 20. b5 {[%emt 0:06:33]} Qxa3 {[%emt 0:00:52]} 21. Ra1 {[%emt 0:09:01]} Qd3 {[%emt 0:00:52]} 22. Rfd1 {[%emt 0:00:23]} Qxb5 {[%emt 0:02:07]} 23. Rdb1 {[%emt 0:00:08]} Qc6 {[%emt 0:00:24]} 24. Rc1 {[%emt 0:00:06]} Qb5 {[%emt 0:01:28]} 25. Rab1 {[%emt 0:00:05]} Qa6 {[%emt 0:00:08]} 26. Ra1 {[%emt 0:06:28]} 1/2-1/2

[Event "XXXII Belgrade Trophy 2018"]
[Site "Belgrade"]
[Date "2018.12.01"]
[Round "8"]
[White "Abramovic, Bosko"]
[Black "Lajthajm, Borko"]
[Result "1/2-1/2"]
[ECO "A20"]
[WhiteElo "2372"]
[BlackElo "2407"]
[Annotator "NA"]
[PlyCount "30"]
[EventDate "2018.11.24"]
[EventType "swiss"]
[EventCountry "SRB"]
[SourceTitle "playchess.com"]
[Source "ChessBase"]
[SourceQuality "1"]
[TimeControl "40/5400+30:900+30"]

1. g3 {[%emt 0:00:00]} Nf6 {[%emt 0:00:00]} 2. Bg2 {[%emt 0:00:00]} e5 {[%emt 0:00:00]} 3. c4 {[%emt 0:01:54]} c6 {[%emt 0:00:54]} 4. d3 {[%emt 0:03:25]} Bb4+ {[%emt 0:00:26]} 5. Bd2 {[%emt 0:03:35]} a5 {[%emt 0:01:04]} 6. Nf3 {[%emt 0:01:04]} Bxd2+ {[%emt 0:00:14]} 7. Nbxd2 {[%emt 0:00:10]} d6 {[%emt 0:00:07]} 8. O-O {[%emt 0:02:51]} Bg4 {[%emt 0:00:49]} 9. c5 {[%emt 0:04:21]} Bxf3 {[%emt 0:00:10]} 10. Nxf3 {[%emt 0:00:09]} Na6 {[%emt 0:02:07]} 11. cxd6 {[%emt 0:00:35]} Qxd6 {[%emt 0:00:06]} 12. Qc2 {[%emt 0:01:42]} O-O {[%emt 0:00:23]} 13. Rac1 {[%emt 0:03:08]} Nb4 {[%emt 0:00:29]} 14. Qb1 {[%emt 0:00:07]} Rfe8 {[%emt 0:00:28]} 15. a3 {[%emt 0:00:21]} Nbd5 {[%emt 0:00:45]} 1/2-1/2

[Event "XXXII Belgrade Trophy 2018"]
[Site "Belgrade"]
[Date "2018.12.01"]
[Round "8"]
[White "Dimic, Pavle"]
[Black "Maric, Dragan"]
[Result "1-0"]
[ECO "E12"]
[WhiteElo "2348"]
[BlackElo "2174"]
[Annotator "NA"]
[PlyCount "47"]
[EventDate "2018.11.24"]
[EventType "swiss"]
[EventCountry "SRB"]
[SourceTitle "playchess.com"]
[Source "ChessBase"]
[SourceQuality "1"]
[TimeControl "40/5400+30:900+30"]

1. d4 {[%emt 0:00:19]} Nf6 {[%emt 0:00:00]} 2. Nf3 {[%emt 0:00:08]} e6 {[%emt 0:00:00]} 3. c4 {[%emt 0:00:03]} b6 {[%emt 0:00:01]} 4. a3 {[%emt 1:31:30]} d5 {[%emt 0:00:53]} 5. Nc3 {[%emt 0:00:00]} Bb7 {[%emt 0:01:18]} 6. Bg5 {[%emt 0:00:00]} Be7 {[%emt 0:00:29]} 7. Bxf6 {[%emt 0:00:00]} Bxf6 {[%emt 0:00:10]} 8. cxd5 {[%emt 0:00:00]} exd5 {[%emt 0:00:17]} 9. Qa4+ {[%emt 0:00:00] E12: Queen's Indian: Unusual White 4th moves, 4 a3, 4 Nc3 Bb7 5 a3 and 4 Nc3 Bb7} Nd7 {[%emt 0:03:08]} 10. g3 {[%emt 0:00:00]} O-O {[%emt 0:00:37]} 11. Bh3 {[%emt 0:00:00]} Nb8 {[%emt 0:02:00]} 12. O-O {[%emt 0:00:00]} Re8 {[%emt 0:03:47]} 13. Rad1 $146 {[%emt 0:00:00]} ({Predecessor:} 13. Rfd1 Na6 14. Bd7 {0-1 (44) Kozul,Z (2597)-Almasi,Z (2707) Bastia 2013}) 13... c6 {[%emt 0:05:45]} 14. Rfe1 {[%emt 0:00:00]} b5 {[%emt 0:05:06]} 15. Qc2 {[%emt 0:00:00]} Nd7 {[%emt 0:01:30]} 16. e4 {[%emt 0:00:00]} Nb6 {[%emt 0:00:28]} 17. e5 {[%emt 0:00:00]} Be7 {[%emt 0:04:28]} 18. e6 {[%emt 0:00:00]} g6 {[%emt 0:01:09] [#]} 19. Ne5 $1 {[%emt 0:00:00]} ({Weaker is} 19. exf7+ Kxf7 20. a4 bxa4 $16) 19... f5 {[%emt 0:01:11]} 20. Nf7 {[%emt 0:00:00]} Qb8 {[%emt 0:07:26] [#]} 21. Bxf5 $18 {[%emt 0:00:00]} gxf5 {[%emt 0:00:57]} 22. Qxf5 {[%emt 0:00:00]} Nc4 {[%emt 0:06:43]} 23. Qg4+ {[%emt 0:00:00]} Kf8 {[%emt 0:00:18]} 24. Nh6 {[%emt 0:00:00]} 1-0

[Event "XXXII Belgrade Trophy 2018"]
[Site "Belgrade"]
[Date "2018.12.01"]
[Round "8"]
[White "Velickovic, Sasa"]
[Black "Cetkovic, Miodrag"]
[Result "1-0"]
[ECO "C41"]
[WhiteElo "2293"]
[BlackElo "2189"]
[Annotator "ChessBase"]
[PlyCount "143"]
[EventDate "2018.11.24"]
[EventType "swiss"]
[EventCountry "SRB"]
[SourceTitle "playchess.com"]
[Source "ChessBase"]
[SourceQuality "1"]
[TimeControl "40/5400+30:900+30"]

1. e4 {[%emt 0:00:00]} d6 {[%emt 0:00:08]} 2. d4 {[%emt 0:00:00]} Nf6 {[%emt 0:00:07]} 3. Nc3 {[%emt 0:00:14]} e5 {[%emt 0:00:20]} 4. Nf3 {[%emt 0:00:53]} Nbd7 {[%emt 0:00:20]} 5. Bc4 {[%emt 0:03:04]} Be7 {[%emt 0:00:25]} 6. O-O {[%emt 0:00:21]} O-O {[%emt 0:00:07]} 7. Re1 {[%emt 0:00:16]} c6 {[%emt 0:01:27]} 8. a4 {[%emt 0:00:16]} a5 {[%emt 0:01:09]} 9. b3 {[%emt 0:02:14]} Qc7 {[%emt 0:02:00]} 10. Ba3 {[%emt 0:01:10]} Nb6 {[%emt 0:02:37]} 11. Be2 {[%emt 0:01:37]} Bg4 {[%emt 0:04:08]} 12. h3 {[%emt 0:01:18]} Bh5 {[%emt 0:03:16]} 13. Qd3 {[%emt 0:02:51]} Rad8 {[%emt 0:02:41]} 14. Rad1 {[%emt 0:02:07]} Rfe8 {[%emt 0:07:11]} 15. Qe3 {[%emt 0:02:27]} Bxf3 {[%emt 0:05:02]} 16. Bxf3 {[%emt 0:04:24]} Nbd7 {[%emt 0:06:15]} 17. g3 {[%emt 0:05:40]} Nf8 {[%emt 0:03:21]} 18. d5 {[%emt 0:02:25]} c5 {[%emt 0:03:49]} 19. Be2 {[%emt 0:04:07]} N8d7 {[%emt 0:00:47]} 20. Kg2 {[%emt 0:01:30]} Bf8 {[%emt 0:00:23]} 21. Rh1 {[%emt 0:01:35]} Nb6 {[%emt 0:02:26]} 22. h4 {[%emt 0:02:19]} Qe7 {[%emt 0:04:49]} 23. Bc1 {[%emt 0:03:25]} Ra8 {[%emt 0:01:31]} 24. Nb1 {[%emt 0:05:49]} Nfd7 {[%emt 0:03:36]} 25. Na3 {[%emt 0:00:37]} Rec8 {[%emt 0:01:30]} 26. Bd2 {[%emt 0:00:16]} c4 {[%emt 0:02:23]} 27. Nxc4 {[%emt 0:04:22]} Nxc4 {[%emt 0:00:21]} 28. Bxc4 {[%emt 0:00:07]} Nc5 {[%emt 0:00:14]} 29. Be2 {[%emt 0:01:50]} Qc7 {[%emt 0:02:41]} 30. Rb1 {[%emt 0:01:04]} Be7 {[%emt 0:00:24]} 31. c3 {[%emt 0:02:05]} Bd8 {[%emt 0:02:13]} 32. Qf3 {[%emt 0:14:49]} Qe7 {[%emt 0:01:59]} 33. Bb5 {[%emt 0:01:51]} Qf8 {[%emt 0:04:36]} 34. Rb2 {[%emt 0:04:35]} Qe7 {[%emt 0:04:06]} 35. Ra1 {[%emt 0:00:54]} Nd7 {[%emt 0:02:13]} 36. h5 {[%emt 0:07:41]} h6 {[%emt 0:05:50]} 37. Qf5 {[%emt 0:02:22]} Nf6 {[%emt 0:00:58]} 38. Re1 {[%emt 0:00:13]} Nh7 {[%emt 0:05:03]} 39. f4 {[%emt 0:04:03]} f6 {[%emt 0:00:48]} 40. Qd7 {[%emt 0:04:02]} Rc7 {[%emt 0:01:38]} 41. Qxe7 {[%emt 0:15:06]} Rxe7 {[%emt 0:15:31]} 42. b4 {[%emt 0:03:56]} Bb6 {[%emt 0:03:34]} 43. c4 {[%emt 0:03:11]} axb4 {[%emt 0:02:20]} 44. Bxb4 {[%emt 0:00:11]} Rd8 {[%emt 0:00:28]} 45. a5 {[%emt 0:00:13]} Bd4 {[%emt 0:08:23]} 46. Ra2 {[%emt 0:03:21]} Bc5 {[%emt 0:00:00]} 47. Bxc5 {[%emt 0:00:00]} dxc5 {[%emt 0:00:00]} 48. a6 {[%emt 0:00:00]} bxa6 {[%emt 0:00:00]} 49. Rxa6 {[%emt 0:00:00]} Nf8 {[%emt 0:00:00]} 50. Rc6 {[%emt 0:00:00]} Ra7 {[%emt 0:00:00]} 51. Rxc5 {[%emt 0:00:00]} Ra2+ {[%emt 0:00:00]} 52. Kf3 {[%emt 0:00:00]} Rda8 {[%emt 0:00:00]} 53. Re2 {[%emt 0:00:00]} Ra1 {[%emt 0:00:00]} 54. Rc7 {[%emt 0:00:00]} Rf1+ {[%emt 0:00:00]} 55. Kg2 {[%emt 0:00:00]} Raa1 {[%emt 0:00:00]} 56. fxe5 {[%emt 0:00:00]} fxe5 {[%emt 0:00:00]} 57. c5 {[%emt 0:01:36]} Rg1+ {[%emt 0:00:00]} 58. Kf2 {[%emt 0:01:07]} Raf1+ {[%emt 0:00:00]} 59. Ke3 {[%emt 0:00:01]} Rxg3+ {[%emt 0:00:00]} 60. Kd2 {[%emt 0:00:00]} Rb1 {[%emt 0:00:00]} 61. Bd3 {[%emt 0:00:28]} Rb3 {[%emt 0:00:00]} 62. Bc2 {[%emt 0:00:02]} Rb4 {[%emt 0:00:02]} 63. Rf2 {[%emt 0:00:22]} Rb8 {[%emt 0:02:14]} 64. c6 {[%emt 0:00:08]} Rd8 {[%emt 0:00:07]} 65. Re7 {[%emt 0:00:15]} Ra3 {[%emt 0:02:39]} 66. c7 {[%emt 0:00:10]} Rc8 {[%emt 0:00:06]} 67. Rff7 {[%emt 0:00:25]} Ra6 {[%emt 0:01:28]} 68. Rxg7+ {[%emt 0:00:43]} Kh8 {[%emt 0:00:07]} 69. Rgf7 {[%emt 0:00:37]} Kg8 {[%emt 0:00:15]} 70. Bd3 {[%emt 0:00:28]} Rd6 {[%emt 0:00:17]} 71. Rf1 {[%emt 0:00:38]} Nd7 {[%emt 0:00:39]} 72. Re6 {[%emt 0:02:12]} 1-0

[Event "XXXII Belgrade Trophy 2018"]
[Site "Belgrade"]
[Date "2018.12.01"]
[Round "8"]
[White "Andrijevic, Milan"]
[Black "Ivanovic, Marko"]
[Result "0-1"]
[ECO "C41"]
[WhiteElo "2269"]
[BlackElo "2202"]
[Annotator "ChessBase"]
[PlyCount "56"]
[EventDate "2018.11.24"]
[EventType "swiss"]
[EventCountry "SRB"]
[SourceTitle "playchess.com"]
[Source "ChessBase"]
[SourceQuality "1"]
[TimeControl "40/5400+30:900+30"]

1. e4 {[%emt 0:00:00]} d6 {[%emt 0:03:51]} 2. d4 {[%emt 0:00:00]} Nf6 {[%emt 0:00:06]} 3. Nc3 {[%emt 0:00:11]} Nbd7 {[%emt 0:00:14]} 4. Nf3 {[%emt 0:03:09]} e5 {[%emt 0:00:59]} 5. Bc4 {[%emt 0:00:38]} Be7 {[%emt 0:00:05]} 6. O-O {[%emt 0:00:14]} O-O {[%emt 0:00:07]} 7. a4 {[%emt 0:00:22]} c6 {[%emt 0:00:15]} 8. Re1 {[%emt 0:04:58]} Qc7 {[%emt 0:00:34]} 9. Bg5 {[%emt 0:03:25]} b6 {[%emt 0:14:15]} 10. Ba2 {[%emt 0:05:45]} a6 {[%emt 0:11:35]} 11. dxe5 {[%emt 0:03:46]} dxe5 {[%emt 0:00:51]} 12. Nd2 {[%emt 0:01:32]} Nc5 {[%emt 0:05:06]} 13. Bc4 {[%emt 0:07:03]} Be6 {[%emt 0:08:42]} 14. Qe2 {[%emt 0:08:05]} b5 {[%emt 0:01:15]} 15. Bxe6 {[%emt 0:02:09]} Nxe6 {[%emt 0:00:06]} 16. Bxf6 {[%emt 0:00:13]} Bxf6 {[%emt 0:01:02]} 17. Nf3 {[%emt 0:00:51]} Be7 {[%emt 0:09:19]} 18. Nd1 {[%emt 0:05:26]} Bc5 {[%emt 0:01:49]} 19. c3 {[%emt 0:01:42]} Nf4 {[%emt 0:03:33]} 20. Qc2 {[%emt 0:00:52]} Rad8 {[%emt 0:04:13]} 21. b4 {[%emt 0:05:25]} Bb6 {[%emt 0:02:28]} 22. Nb2 {[%emt 0:01:08]} Qd6 {[%emt 0:06:09]} 23. Rf1 {[%emt 0:06:22]} Qg6 {[%emt 0:00:56]} 24. g3 {[%emt 0:00:33]} Qh5 {[%emt 0:02:50]} 25. Ne1 {[%emt 0:07:33]} Rd6 {[%emt 0:03:08]} 26. Kh1 {[%emt 0:04:00]} Rh6 {[%emt 0:01:09]} 27. f3 {[%emt 0:00:48]} Qh3 {[%emt 0:00:19]} 28. Ned3 {[%emt 0:02:30]} Nh5 {[%emt 0:00:06]} 0-1

[Event "XXXII Belgrade Trophy 2018"]
[Site "Belgrade"]
[Date "2018.12.01"]
[Round "8"]
[White "Eric, Jovana"]
[Black "Petrovic, Petar R"]
[Result "0-1"]
[ECO "B01"]
[WhiteElo "2257"]
[BlackElo "2014"]
[Annotator "RC"]
[PlyCount "84"]
[EventDate "2018.11.24"]
[EventType "swiss"]
[EventCountry "SRB"]
[SourceTitle "playchess.com"]
[Source "ChessBase"]
[SourceQuality "1"]
[TimeControl "40/5400+30:900+30"]

1. e4 {[%emt 1:30:30]} d5 {[%emt 1:30:30]} 2. exd5 {[%emt 0:00:30]} Qxd5 {[%emt 0:00:30]} 3. Nc3 {[%emt 0:00:30]} Qd8 {[%emt 0:00:30]} 4. d4 {[%emt 0:00:30]} c6 {[%emt 0:00:30]} 5. Bc4 {[%emt 0:00:30]} Nf6 {[%emt 0:00:30]} 6. Nf3 {[%emt 0:00:30]} Bf5 {[%emt 0:00:30]} 7. Qe2 {[%emt 0:00:30]} e6 {[%emt 0:00:30]} 8. Bg5 {[%emt 0:00:30]} Nbd7 {[%emt 0:00:30]} 9. O-O-O {[%emt 0:00:30]} Be7 {[%emt 0:00:30]} 10. Ne5 {[%emt 0:00:30]} Nxe5 {[%emt 0:00:30]} 11. dxe5 {[%emt 0:00:30]} Nd5 {[%emt 0:00:30]} 12. Bxe7 {[%emt 0:00:30]} Qxe7 {[%emt 0:00:30]} 13. Bxd5 {[%emt 0:00:30]} exd5 {[%emt 0:00:30]} 14. Kb1 {[%emt 0:00:30]} O-O-O {[%emt 0:00:30]} 15. g4 {[%emt 0:00:30]} Be6 {[%emt 0:00:30]} 16. Rd4 {[%emt 0:00:30]} Kb8 {[%emt 0:00:30]} 17. Rhd1 {[%emt 0:00:30]} Bc8 {[%emt 0:00:30]} 18. f4 {[%emt 0:00:30]} f6 {[%emt 0:00:30]} 19. Re1 {[%emt 0:00:30]} Rhe8 {[%emt 0:00:30]} 20. Qf3 {[%emt 0:00:30]} Qc5 {[%emt 0:00:30]} 21. Rdd1 {[%emt 0:00:30]} fxe5 {[%emt 0:00:30]} 22. fxe5 {[%emt 0:00:30]} Be6 {[%emt 0:00:30]} 23. Qg3 {[%emt 0:00:30]} g5 {[%emt 0:00:30]} 24. Ne2 {[%emt 0:00:30]} d4 {[%emt 0:00:30]} 25. Nc1 {[%emt 0:00:30]} Qd5 {[%emt 0:00:30]} 26. c3 {[%emt 0:00:30]} Qc4 {[%emt 0:00:30]} 27. cxd4 {[%emt 0:00:30]} Rxd4 {[%emt 0:00:30]} 28. Rxd4 {[%emt 0:00:30]} Qxd4 {[%emt 0:00:30]} 29. h3 {[%emt 0:00:30]} Rf8 {[%emt 0:00:30]} 30. Nb3 {[%emt 0:00:30]} Qd5 {[%emt 0:00:30]} 31. Qe3 {[%emt 0:00:30]} h6 {[%emt 0:00:30]} 32. Qe2 {[%emt 0:00:30]} Rd8 {[%emt 0:00:30]} 33. Rf1 {[%emt 0:00:30]} a5 {[%emt 0:00:30]} 34. Nc1 {[%emt 0:00:30]} a4 {[%emt 0:00:30]} 35. Qe3 {[%emt 0:00:30]} Qb5 {[%emt 0:00:30]} 36. Rf6 {[%emt 0:00:30]} a3 {[%emt 0:00:30]} 37. Qxa3 {[%emt 0:00:30]} Qxe5 {[%emt 0:00:30]} 38. Rf8 {[%emt 0:00:30]} Rxf8 {[%emt 0:00:30]} 39. Qxf8+ {[%emt 0:00:30]} Ka7 {[%emt 0:00:30]} 40. Qxh6 {[%emt 0:00:30]} Qe4+ {[%emt 0:00:30]} 41. Ka1 {[%emt 0:15:30]} Qe3 {[%emt 0:15:30]} 42. Kb1 {[%emt 0:00:30]} Bd5 {[%emt 0:00:30]} 0-1

[Event "XXXII Belgrade Trophy 2018"]
[Site "Belgrade"]
[Date "2018.12.01"]
[Round "8"]
[White "Veleski, Robert"]
[Black "Cerovic, Danilo"]
[Result "0-1"]
[ECO "A07"]
[WhiteElo "2211"]
[BlackElo "2333"]
[Annotator "RC"]
[PlyCount "96"]
[EventDate "2018.11.24"]
[EventType "swiss"]
[EventCountry "SRB"]
[SourceTitle "playchess.com"]
[Source "ChessBase"]
[SourceQuality "1"]
[TimeControl "40/5400+30:900+30"]

1. Nf3 {[%emt 0:00:00]} Nf6 {[%emt 0:02:58]} 2. g3 {[%emt 0:00:38]} g6 {[%emt 0:01:02]} 3. Bg2 {[%emt 0:00:21]} Bg7 {[%emt 0:00:08]} 4. O-O {[%emt 0:00:26]} O-O {[%emt 0:00:32]} 5. d3 {[%emt 0:02:09]} d5 {[%emt 0:00:38]} 6. a3 {[%emt 0:01:59]} a5 {[%emt 0:02:18]} 7. a4 {[%emt 0:02:18]} Nc6 {[%emt 0:00:42]} 8. Na3 {[%emt 0:00:26]} e5 {[%emt 0:03:57]} 9. c3 {[%emt 0:04:53]} h6 {[%emt 0:03:06]} 10. Bd2 {[%emt 0:02:31]} e4 {[%emt 0:02:59]} 11. Ne1 {[%emt 0:05:20]} Re8 {[%emt 0:03:33]} 12. d4 {[%emt 0:04:14]} Bf5 {[%emt 0:01:34]} 13. Nec2 {[%emt 0:00:43]} Qd7 {[%emt 0:06:23]} 14. Nb5 {[%emt 0:00:59]} Rac8 {[%emt 0:06:04]} 15. Ne3 {[%emt 0:00:55]} Bh3 {[%emt 0:00:55]} 16. Qb3 {[%emt 0:05:50]} Ne7 {[%emt 0:05:39]} 17. Rfc1 {[%emt 0:08:42]} h5 {[%emt 0:06:46]} 18. c4 {[%emt 0:01:26]} Bxg2 {[%emt 0:08:04]} 19. Kxg2 {[%emt 0:00:37]} c6 {[%emt 0:00:13]} 20. Nc3 {[%emt 0:06:14]} Ng4 {[%emt 0:11:33]} 21. cxd5 {[%emt 0:02:52]} Bxd4 {[%emt 0:01:51]} 22. Nxg4 {[%emt 0:03:56]} Qxg4 {[%emt 0:03:42]} 23. d6 {[%emt 0:09:25]} Bxc3 {[%emt 0:01:04]} 24. Qxc3 {[%emt 0:02:41]} Nd5 {[%emt 0:01:11]} 25. Qd4 {[%emt 0:00:51]} Rcd8 {[%emt 0:02:00]} 26. h3 {[%emt 0:05:45]} Qxe2 {[%emt 0:01:36]} 27. Bh6 {[%emt 0:03:39]} f6 {[%emt 0:02:29]} 28. Ra3 {[%emt 0:00:51]} Rxd6 {[%emt 0:02:06]} 29. Qc5 {[%emt 0:02:06]} Rde6 {[%emt 0:00:42]} 30. Rc2 {[%emt 0:01:39]} Qa6 {[%emt 0:01:22]} 31. Be3 {[%emt 0:01:09]} b6 {[%emt 0:01:45]} 32. Qc4 {[%emt 0:00:58]} Qxc4 {[%emt 0:00:21]} 33. Rxc4 {[%emt 0:00:06]} c5 {[%emt 0:00:17]} 34. Rc2 {[%emt 0:05:42]} Rd6 {[%emt 0:00:42]} 35. Re2 {[%emt 0:00:22]} g5 {[%emt 0:00:54]} 36. Ra1 {[%emt 0:00:42]} Nb4 {[%emt 0:02:46]} 37. Bd2 {[%emt 0:01:45]} Nc2 {[%emt 0:01:03]} 38. Bf4 {[%emt 0:00:27]} gxf4 {[%emt 0:00:24]} 39. Rxc2 {[%emt 0:00:07]} f3+ {[%emt 0:00:03]} 40. Kh2 {[%emt 0:05:10]} f5 {[%emt 0:00:54]} 41. Rg1 {[%emt 0:18:06]} Kf7 {[%emt 0:15:46]} 42. g4 {[%emt 0:00:00]} hxg4 {[%emt 0:00:00]} 43. Kg3 {[%emt 0:00:00]} gxh3 {[%emt 0:00:00]} 44. Kf4 {[%emt 0:00:10]} Rg6 {[%emt 0:00:00]} 45. Rh1 {[%emt 0:00:52]} Kf6 {[%emt 0:00:00]} 46. Rxh3 {[%emt 0:00:07]} Rg4+ {[%emt 0:00:00]} 47. Ke3 {[%emt 0:00:06]} Rd8 {[%emt 0:00:00]} 48. Rc3 {[%emt 0:00:11]} Ke5 {[%emt 0:00:00] Kd4+ [%clk 0:00:00]} 0-1

[Event "XXXII Belgrade Trophy 2018"]
[Site "Belgrade"]
[Date "2018.12.01"]
[Round "8"]
[White "Damjanovic, Vuk"]
[Black "Lundin, Jan"]
[Result "0-1"]
[ECO "A80"]
[WhiteElo "2053"]
[BlackElo "2287"]
[Annotator "RC"]
[PlyCount "60"]
[EventDate "2018.11.24"]
[EventType "swiss"]
[EventCountry "SRB"]
[SourceTitle "playchess.com"]
[Source "ChessBase"]
[SourceQuality "1"]
[TimeControl "40/5400+30:900+30"]

1. d4 {[%emt 0:01:37]} f5 {[%emt 0:00:00]} 2. Bg5 {[%emt 0:00:55]} g6 {[%emt 0:00:32]} 3. Nc3 {[%emt 0:04:23]} Bg7 {[%emt 0:00:07]} 4. e4 {[%emt 0:07:20]} fxe4 {[%emt 0:01:00]} 5. Nxe4 {[%emt 0:00:13]} d5 {[%emt 0:00:05]} 6. Nc3 {[%emt 0:02:52]} Nh6 {[%emt 0:06:53]} 7. Be2 {[%emt 0:05:39]} Nf5 {[%emt 0:03:30]} 8. Nf3 {[%emt 0:00:10]} Nc6 {[%emt 0:00:47]} 9. Bb5 {[%emt 0:00:43]} Qd6 {[%emt 0:09:09]} 10. Qd2 {[%emt 0:09:46]} O-O {[%emt 0:11:56]} 11. Bxc6 {[%emt 0:01:48]} Qxc6 {[%emt 0:00:19]} 12. O-O {[%emt 0:05:05]} e6 {[%emt 0:03:43]} 13. Rfe1 {[%emt 0:12:56]} a5 {[%emt 0:05:26]} 14. a4 {[%emt 0:04:41]} Qb6 {[%emt 0:02:22]} 15. Rad1 {[%emt 0:04:46]} Bd7 {[%emt 0:03:26]} 16. Ne5 {[%emt 0:05:34]} Be8 {[%emt 0:00:17]} 17. g4 {[%emt 0:07:07]} Nd6 {[%emt 0:25:09]} 18. b3 {[%emt 0:06:50]} Nf7 {[%emt 0:01:32]} 19. Nxf7 {[%emt 0:04:47]} Rxf7 {[%emt 0:00:30]} 20. Bh6 {[%emt 0:03:10]} Bxh6 {[%emt 0:05:20]} 21. Qxh6 {[%emt 0:00:07]} Bd7 {[%emt 0:00:12]} 22. Qe3 {[%emt 0:04:35]} Raf8 {[%emt 0:00:16]} 23. Kg2 {[%emt 0:00:19]} c5 {[%emt 0:05:39]} 24. Ne2 {[%emt 0:00:45]} e5 {[%emt 0:05:30]} 25. dxe5 {[%emt 0:02:41]} d4 {[%emt 0:04:04]} 26. Qg3 {[%emt 0:00:07]} Rf3 {[%emt 0:01:05]} 27. Qh4 {[%emt 0:00:53]} Qe6 {[%emt 0:00:25]} 28. h3 {[%emt 0:02:55]} Bc6 {[%emt 0:00:16]} 29. Kg1 {[%emt 0:00:42]} Qd5 {[%emt 0:00:49]} 30. c4 {[%emt 0:00:17]} Rg3+ {[%emt 0:00:27]} 0-1

[Event "XXXII Belgrade Trophy 2018"]
[Site "Belgrade"]
[Date "2018.12.02"]
[Round "9"]
[White "Graovac, Vidak Balsa"]
[Black "Veleski, Robert"]
[Result "0-1"]
[ECO "B06"]
[WhiteElo "2155"]
[BlackElo "2211"]
[Annotator "ChessBase"]
[PlyCount "43"]
[EventDate "2018.11.24"]
[EventType "swiss"]
[EventCountry "SRB"]
[SourceTitle "playchess.com"]
[Source "ChessBase"]
[SourceQuality "1"]
[TimeControl "40/5400+30:900+30"]

1. e4 {[%emt 1:30:30]} g6 {[%emt 1:30:30]} 2. d4 {[%emt 0:00:30]} Bg7 {[%emt 0:00:30]} 3. Bc4 {[%emt 0:00:30]} d6 {[%emt 0:00:30]} 4. Nf3 {[%emt 0:00:30]} e6 {[%emt 0:00:30]} 5. Qe2 {[%emt 0:00:30]} Ne7 {[%emt 0:00:30]} 6. Bg5 {[%emt 0:00:30]} h6 {[%emt 0:00:30]} 7. Bh4 {[%emt 0:00:30]} a6 {[%emt 0:00:30]} 8. c3 {[%emt 0:00:30]} b6 {[%emt 0:00:30]} 9. Nbd2 {[%emt 0:00:30]} Bb7 {[%emt 0:00:30]} 10. e5 {[%emt 0:00:30]} g5 {[%emt 0:00:30] Bg3Nf5 [%clk 0:00:00]} 11. exd6 {[%emt 0:00:30] Nxg3 [%clk 0:00:00] dxc7 [%clk 0:00:00] Qxc7 [%clk 0:00:00] hxg3 [%clk 0:00:00]} O-O {[%emt 0:00:30]} 12. Bd3 {[%emt 0:00:30] Rd8 [%clk 0:00:00] Nc4 [%clk 0:00:00]} Nd7 {[%emt 0:00:30] Ne3 [%clk 0:00:00] e5 [%clk 0:00:00] dxe5 [%clk 0:00:00]} 13. Ne5 {[%emt 0:00:30]} Nxe5 {[%emt 0:00:30]} 14. Qxe5 {[%emt 0:00:30] O-O [%clk 0:00:00]} b5 {[%emt 0:00:30]} 15. a3 {[%emt 0:00:30]} Re8 {[%emt 0:00:30] Qg4 [%clk 0:00:00] Qd6 [%clk 0:00:00]} 16. Be2 {[%emt 0:00:30] Re4 [%clk 0:00:00] Rad1 [%clk 0:00:00] Qb6 [%clk 0:00:00] Qf5 [%clk 0:00:00] Re5 [%clk 0:00:00]} Qd7 {[%emt 0:00:30] Bc6 [%clk 0:00:00] Rd6 [%clk 0:00:00] Bxd7 [%clk 0:00:00] Rxb6 [%clk 0:00:00] Re6 [%clk 0:00:00] Rxe6 [%clk 0:00:00] Bxe6 [%clk 0:00:00]} 17. Rd1 {[%emt 0:00:30]} Kf8 {[%emt 0:00:30]} 18. Bf3 {[%emt 0:00:30]} Ra7 {[%emt 0:00:30]} 19. Bd5 {[%emt 0:00:30]} Bc8 {[%emt 0:00:30]} 20. f4 {[%emt 0:00:30]} Bf6 {[%emt 0:00:30]} 21. Kf2 {[%emt 0:00:30] Be7 [%clk 0:00:00] Be4 [%clk 0:00:00] Be6 [%clk 0:00:00] f5 [%clk 0:00:00] Bb3 [%clk 0:00:00] Bc2 [%clk 0:00:00] Bxc2 [%clk 0:00:00] Nxc2 [%clk 0:00:00]} Kg7 {[%emt 0:00:30]} 22. g4 {[%emt 0:00:30] Rc7 [%clk 0:00:00] Rd5 [%clk 0:00:00] Rc4 [%clk 0:00:00] Nd4 [%clk 0:00:00] Bc5 [%clk 0:00:00] Ke3 [%clk 0:00:00] Kf6 [%clk 0:00:00] Kd3 [%clk 0:00:00] Bxd4 [%clk 0:00:00] Rxd4 [%clk 0:00:00] Rc6 [%clk 0:00:00] Ke4 [%clk 0:00:00] Ke7 [%clk 0:00:00] c4 [%clk 0:00:00] bxc4 [%clk 0:00:00] Kd5 [%clk 0:00:00] Rb6 [%clk 0:00:00] Rd2 [%clk 0:00:00] Rd6+ [%clk 0:00:00]} 0-1